lending/lending_fUSD_20240522
["ID","MTS","AMOUNT","RATE_DAILY","PERIOD"]
[327737859,1716408642215,-151.0,0.00023561,7]
[327737860,1716408642225,-151.0,0.00023561,7]
[327737861,1716408642233,-151.0,0.00023561,7]
[327737862,1716408642245,-151.0,0.00023561,7]
[327737863,1716408642254,-151.0,0.00023561,7]
[327737864,1716408642263,-151.0,0.00023561,7]
[327737865,1716408642272,-151.0,0.00023561,7]
[327737866,1716408642282,-151.0,0.00023561,7]
[327737867,1716408642291,-106613.36573906,0.00023562,2]
[327737868,1716408642300,-793.0,0.00023562,2]
[327737869,1716408642309,-151.0,0.00023562,7]
[327737870,1716408642318,-226.87955,0.00023562,7]
[327737871,1716408642327,-226.87955,0.00023562,7]
[327737872,1716408642339,-151.0,0.00023562,7]
[327737873,1716408642350,-151.0,0.00023562,7]
[327737874,1716408642359,-172.709789,0.00023562,7]
[327737875,1716408642369,-151.0,0.00023562,7]
[327737876,1716408642378,-172.709789,0.00023562,7]
[327737877,1716408642387,-151.0,0.00023562,7]
[327737878,1716408642397,-151.0,0.00023562,7]
[327737879,1716408642407,-151.0,0.00023562,7]
[327737880,1716408642418,-151.0,0.00023562,7]
[327737881,1716408642427,-151.0,0.00023562,7]
[327737882,1716408642436,-151.0,0.00023562,7]
[327737883,1716408642447,-247.373907,0.00023562,7]
[327737884,1716408642456,-150.5,0.0002357,15]
[327737885,1716408642466,-150.5,0.0002358,15]
[327737886,1716408642475,-321.60405701,0.0002359,2]
[327737887,1716408642485,-232.33,0.0002359,15]
[327737888,1716408642495,-150.5,0.0002359,15]
[327737889,1716408642505,-457912.93363944,0.00023599,11]
[327737890,1716408642517,-335304.0,0.000236,2]
[327737891,1716408642527,-1304.36,0.000236,2]
[327737892,1716408642536,-156.621904,0.000236,7]
[327737893,1716408642545,-151.0,0.000236,7]
[327737894,1716408642554,-151.0,0.000236,7]
[327737895,1716408642564,-151.0,0.000236,7]
[327737896,1716408642574,-151.0,0.000236,7]
[327737897,1716408642584,-151.0,0.000236,7]
[327737898,1716408642593,-231.641193,0.000236,7]
[327737899,1716408642602,-226.87955,0.000236,7]
[327737900,1716408642611,-226.87955,0.000236,7]
[327737901,1716408642621,-151.0,0.000236,7]
[327737902,1716408642631,-151.0,0.000236,7]
[327737903,1716408642640,-172.709789,0.000236,7]
[327737904,1716408642649,-151.0,0.000236,7]
[327737905,1716408642659,-172.709789,0.000236,7]
[327737907,1716408642670,-151.0,0.000236,7]
[327737909,1716408642679,-151.0,0.000236,7]
[327737910,1716408642688,-151.0,0.000236,7]
[327737911,1716408642698,-151.0,0.000236,7]
[327737912,1716408642707,-205.512768,0.000236,7]
[327737913,1716408642716,-151.0,0.000236,7]
[327737915,1716408642725,-151.0,0.000236,7]
[327737917,1716408642734,-151.0,0.000236,7]
[327737918,1716408642744,-151.0,0.000236,7]
[327737920,1716408642753,-151.0,0.000236,7]
[327737922,1716408642763,-151.0,0.000236,7]
[327737924,1716408642773,-151.0,0.000236,7]
[327737927,1716408642782,-151.0,0.000236,7]
[327737929,1716408642792,-276.640521,0.000236,7]
[327737934,1716408642802,-276.640521,0.000236,7]
[327737936,1716408642813,-151.0,0.000236,7]
[327737938,1716408642822,-151.0,0.000236,7]
[327737940,1716408642831,-151.0,0.000236,7]
[327737942,1716408642841,-151.0,0.000236,7]
[327737944,1716408642850,-151.0,0.000236,7]
[327737946,1716408642859,-151.0,0.000236,7]
[327737948,1716408642869,-151.0,0.000236,7]
[327737950,1716408642878,-151.0,0.000236,7]
[327737952,1716408642888,-369.700962,0.000236,7]
[327737953,1716408642898,-151.0,0.000236,7]
[327737954,1716408642907,-369.700962,0.000236,7]
[327737955,1716408642917,-153.639977,0.000236,7]
[327737956,1716408642926,-151.0,0.000236,7]
[327737957,1716408642935,-151.0,0.000236,7]
[327737958,1716408642944,-300.369591,0.000236,7]
[327737959,1716408642953,-151.0,0.000236,7]
[327737960,1716408642963,-268.561976,0.000236,7]
[327737961,1716408642972,-151.0,0.000236,7]
[327737962,1716408642981,-268.561976,0.000236,7]
[327737963,1716408642990,-151.0,0.000236,7]
[327737964,1716408642999,-152.06854,0.000236,7]
[327737965,1716408643009,-151.0,0.000236,7]
[327737966,1716408643018,-350.088328,0.000236,7]
[327737967,1716408643028,-350.088328,0.000236,7]
[327737968,1716408643040,-1291.50389298,0.00023602,2]
[327737969,1716408643052,-418.24698787,0.00023607,2]
[327737970,1716408643061,-164.78059617,0.00023614,2]
[327737971,1716408643071,-4487.03464732,0.00023627,2]
[327737972,1716408643080,-175.064598,0.00023632,2]
[327737973,1716408643090,-176.466675,0.00023632,2]
[327737975,1716408643101,-2000.0,0.00023697,2]
[327737976,1716408643111,-200.0,0.00023697,2]
[327737978,1716408643121,-4487.03464732,0.00023718,2]
[327737979,1716408643132,-332.37264762,0.00023753,2]
[327737980,1716408643142,-157.51322458,0.00023761,2]
[327737981,1716408643152,-158.52692095,0.0002378,2]
[327737982,1716408643165,-4487.03464732,0.00023809,2]
[327737984,1716408643184,-157.264026,0.00023836,2]
[327737986,1716408643193,-155.19421787,0.00023853,2]
[327737988,1716408643203,-167.0,0.00023876,2]
[327737990,1716408643212,-1291.50389298,0.00023876,2]
[327737992,1716408643221,-5800.0,0.00023892,2]
[327737994,1716408643230,-5800.0,0.00023892,2]
[327737996,1716408643239,-151.0,0.00023892,7]
[327737997,1716408643248,-150.09523981,0.00023893,2]
[327738000,1716408643262,-5800.0,0.000239,2]
[327738001,1716408643272,-4487.03464732,0.000239,2]
[327738004,1716408643281,-5800.0,0.000239,2]
[327738005,1716408643291,-215.95640323,0.000239,2]
[327738007,1716408643300,-58000.0,0.000239,2]
[327738009,1716408643309,-151.0,0.000239,7]
[327738011,1716408643319,-151.0,0.000239,7]
[327738013,1716408643328,-187.25575375,0.000239,2]
[327738015,1716408643338,-151.0,0.000239,7]
[327738018,1716408643348,-268.561976,0.000239,7]
[327738019,1716408643356,-151.0,0.000239,7]
[327738022,1716408643365,-268.561976,0.000239,7]
[327738025,1716408643374,-164.78059617,0.000239,2]
[327738028,1716408643383,-151.0,0.000239,7]
[327738031,1716408643392,-350.088328,0.000239,7]
[327738034,1716408643401,-350.088328,0.000239,7]
[327738037,1716408643411,-418.24698787,0.00023932,2]
[327738040,1716408643422,-2000.0,0.00023934,2]
[327738042,1716408643432,-200.0,0.00023934,2]
[327738044,1716408643440,-183.086212,0.00023934,7]
[327738045,1716408643450,-150.0,0.00023949,2]
[327738047,1716408643459,-5392.90398899,0.0002395,2]
[327738049,1716408643468,-364.02465488,0.0002395,2]
[327738051,1716408643478,-11856.9034896,0.0002395,2]
[327738067,1716408643619,-191.48727825,0.00023973,2]
[327738070,1716408643629,-153.98057684,0.00023974,2]
[327738071,1716408643638,-151.935606,0.00023984,7]
[327738073,1716408643647,-152.658258,0.00023984,7]
[327738075,1716408643656,-151.710343,0.00023984,7]
[327738077,1716408643668,-5289.8555444,0.00023984,2]
[327738079,1716408643677,-4551.9696374,0.00023984,2]
[327738082,1716408643686,-3814.0837303,0.00023984,2]
[327738083,1716408643696,-3076.1978233,0.00023984,2]
[327738085,1716408643705,-49620.8287206,0.00023984,2]
[327738087,1716408643715,-42699.1822029,0.00023984,2]
[327738089,1716408643724,-35777.5356851,0.00023984,2]
[327738092,1716408643734,-28855.8891674,0.00023984,2]
[327738093,1716408643743,-535.7626903,0.00023984,2]
[327738095,1716408643752,-461.0287519,0.00023984,2]
[327738097,1716408643762,-386.2948134,0.00023984,2]
[327738099,1716408643771,-311.5608749,0.00023984,2]
[327738101,1716408643781,-9695.7416683,0.00023984,2]
[327738103,1716408643790,-8343.2754099,0.00023984,2]
[327738105,1716408643799,-6990.8091516,0.00023984,2]
[327738107,1716408643808,-5638.3428933,0.00023984,2]
[327738109,1716408643818,-3443.5391027,0.00023984,2]
[327738111,1716408643828,-2968.5531241,0.00023984,2]
[327738113,1716408643838,-2493.5671454,0.00023984,2]
[327738115,1716408643847,-2018.5811668,0.00023984,2]
[327738117,1716408643857,-769.0403588,0.00023984,2]
[327738119,1716408643867,-662.9624614,0.00023984,2]
[327738121,1716408643877,-556.8845641,0.00023984,2]
[327738123,1716408643886,-450.8066667,0.00023984,2]
[327738125,1716408643895,-170.35298484,0.00023991,2]
[327738127,1716408643905,-543104.43885311,0.00023999,2]
[327738129,1716408643916,-71926.44088174,0.00023999,2]
[327738170,1716408644368,-148607.86015968,0.00023999,2]
[327738173,1716408644382,-226.87955,0.00023999,7]
[327738175,1716408644392,-226.87955,0.00023999,7]
[327738177,1716408644403,-151.0,0.00023999,7]
[327738179,1716408644413,-151.0,0.00023999,7]
[327738181,1716408644426,-107.93504191,0.00023999,7]
[327738183,1716408644440,-64.77474709,0.00023999,7]
[327738185,1716408644450,-151.0,0.00023999,7]
[327738187,1716408644460,-172.709789,0.00023999,7]
[327738189,1716408644469,-151.0,0.00023999,7]
[327738191,1716408644478,-151.0,0.00023999,7]
[327738193,1716408644487,-151.0,0.00023999,7]
[327738195,1716408644497,-151.0,0.00023999,7]
[327738197,1716408644506,-151.0,0.00023999,7]
[327738199,1716408644516,-201.081106,0.00023999,7]
[327738201,1716408644525,-151.0,0.00023999,7]
[327738203,1716408644535,-151.0,0.00023999,7]
[327738205,1716408644544,-151.0,0.00023999,7]
[327738207,1716408644553,-154.792761,0.00023999,7]
[327738209,1716408644564,-151.0,0.00023999,7]
[327738211,1716408644574,-236.35555,0.00023999,7]
[327738212,1716408644584,-276.640521,0.00023999,7]
[327738213,1716408644593,-276.640521,0.00023999,7]
[327738214,1716408644603,-151.0,0.00023999,7]
[327738215,1716408644612,-151.0,0.00023999,7]
[327738216,1716408644621,-151.0,0.00023999,7]
[327738217,1716408644631,-158.570207,0.00023999,7]
[327738218,1716408644645,-151.0,0.00023999,7]
[327738219,1716408644655,-151.0,0.00023999,7]
[327738220,1716408644668,-151.0,0.00023999,7]
[327738221,1716408644678,-151.0,0.00023999,7]
[327738222,1716408644687,-369.700962,0.00023999,7]
[327738223,1716408644696,-369.700962,0.00023999,7]
[327738225,1716408644705,-257.211584,0.00023999,7]
[327738226,1716408644714,-151.0,0.00023999,7]
[327738228,1716408644724,-151.0,0.00023999,7]
[327738230,1716408644734,-164.79062,0.00023999,7]
[327738232,1716408644744,-268.561976,0.00023999,7]
[327738234,1716408644754,-151.0,0.00023999,7]
[327738235,1716408644764,-268.561976,0.00023999,7]
[327738236,1716408644775,-151.0,0.00023999,7]
[327738237,1716408644785,-151.0,0.00023999,7]
[327738238,1716408644796,-350.088328,0.00023999,7]
[327738239,1716408644806,-350.088328,0.00023999,7]
[327738240,1716408644816,-5268.96971697,0.00024,5]
[327738241,1716408644826,-472.37732213,0.00024,2]
[327738242,1716408644837,-12095.73573067,0.00024,3]
[327738243,1716408644847,-433.05694752,0.00024,2]
[327738244,1716408644858,-413616.13981271,0.00024,5]
[327738245,1716408644871,-27501.66897383,0.00024,5]
[327738246,1716408644883,-1253830.36748994,0.00024,5]
[327738247,1716408644904,-7272.65439133,0.00024,5]
[327738248,1716408644920,-2397.98215753,0.00024,5]
[327738249,1716408644932,-4070.28000001,0.00024,5]
[327738250,1716408644944,-751.28992337,0.00024,5]
[327738251,1716408644957,-1430.82368639,0.00024,5]
[327738252,1716408644969,-1435.8514403,0.00024,5]
[327738253,1716408644982,-1424.84058773,0.00024,5]
[327738254,1716408644994,-1455.75004965,0.00024,5]
[327738255,1716408645019,-12848.02019309,0.00024,5]
[327738256,1716408645046,-466.19424683,0.000236,7]
[327738274,1716408645955,-321.50938792,0.00020981,2]
[327738275,1716408645965,-193.71065025,0.00021463,2]
[327738276,1716408645977,-373.98434975,0.00021463,2]
[327738277,1716408645986,-567.695,0.00021564,2]
[327738278,1716408645996,-1799.33144917,0.000236,7]
[327738279,1716408646006,-834.71669353,0.00023892,7]
[327738280,1716408646031,-610.94848687,0.00023892,7]
[327738281,1716408646043,-779.15936728,0.00023892,7]
[327738282,1716408646055,-40.70114832,0.00023892,7]
[327738283,1716408646064,-187.21036864,0.000239,2]
[327738284,1716408646074,-2265.525696,0.00023999,7]
[327738285,1716408646084,-5219.06278704,0.00024,5]
[327738286,1716408646095,-3135491.43102269,0.00024,5]
[327738287,1716408646107,-2980.27730005,0.00024,5]
[327738293,1716408646237,-1385.90735399,0.00019451,2]
[327738294,1716408646249,-151.0,0.000236,7]
[327738296,1716408646259,-63321.58552872,0.00024,5]
[327738297,1716408646271,-1230.46228544,0.00024,5]
[327738298,1716408646803,-155.0,0.00013909,2]
[327738299,1716408646813,-324.77451672,0.00019451,2]
[327738300,1716408646822,-321.50938792,0.00022441,2]
[327738301,1716408646832,-524.28,0.00023331,2]
[327738302,1716408646841,-2265.525696,0.000236,7]
[327738303,1716408646851,-151.0,0.00023892,7]
[327738304,1716408646860,-2265.525696,0.00023892,7]
[327738305,1716408646870,-151.0,0.00023999,7]
[327738306,1716408646879,-2265.525696,0.00023999,7]
[327738307,1716408646889,-232353.31458353,0.00024,5]
[327738308,1716408646902,-70445.41366287,0.00024,5]
[327738309,1716408646925,-309.50640515,0.00024,5]
[327738310,1716408646936,-7879.69676075,0.00024,5]
[327738311,1716408646947,-2588.34354534,0.00024,5]
[327738312,1716408646962,-2647.90485982,0.00024,5]
[327738313,1716408646972,-3156.19607882,0.00024,5]
[327738314,1716408969078,166.32,0.00024662,120]
[327738315,1716408978691,159.12,0.00021589,30]
[327738317,1716409387645,200.0,0.00031,120]
[327738318,1716409471147,159.12,0.00021589,30]
[327738319,1716409637047,1486.18,0.00013684,3]
[327738321,1716409663159,159.95559317,0.00012922,2]
[327738322,1716409679740,955.98631994,0.00013,2]
[327738324,1716409697846,661.46164282,0.00013,2]
[327738328,1716409742295,955.98631994,0.0001235,2]
[327738338,1716409798401,346.42279959,0.0001235,2]
[327738339,1716409818407,346.42279959,0.0001235,2]
[327738358,1716409832080,-362.84660977,0.00012985,2]
[327738359,1716409832092,-296.8688241,0.00012985,2]
[327738360,1716409832102,-215.9811759,0.00012985,2]
[327738361,1716409832116,-105.85226144,0.00012985,2]
[327738362,1716409832127,-328.89273856,0.00012986,2]
[327738363,1716409832138,-406.88491914,0.00012986,2]
[327738364,1716409832151,-1362.09284991,0.00012986,2]
[327738365,1716409832212,-510.3000105,0.00012986,2]
[327738366,1716409832224,-599.89049949,0.00012986,2]
[327738367,1716409832786,-1390.85996926,0.00012986,2]
[327738368,1716409832796,-581.72395208,0.00012987,2]
[327738369,1716409832807,-303.8,0.00012987,2]
[327738370,1716409832818,-2400.25248018,0.00012987,2]
[327738371,1716409832828,-1385.90735399,0.00012987,2]
[327738372,1716409832838,-1596.182853,0.00012988,2]
[327738388,1716409838112,-541.14574695,0.00012984,2]
[327738389,1716409838122,-523.62500017,0.00012984,2]
[327738390,1716409838132,-446.8178927,0.00012984,2]
[327738391,1716409838142,-12077.60550507,0.00012986,2]
[327738392,1716409838157,-8355.461751,0.00012986,2]
[327738393,1716409838172,-14945.8984615,0.00012986,2]
[327738394,1716409838183,-1495.05749469,0.00012988,2]
[327738395,1716409838193,-237.41199557,0.00012988,2]
[327738396,1716409838203,-155.0,0.00012988,2]
[327738397,1716409838212,-834.74999327,0.00012988,2]
[327738398,1716409838223,-361.22735375,0.00012988,2]
[327738399,1716409838233,-155.0,0.00012988,2]
[327738400,1716409838242,-150.0,0.00012988,2]
[327738401,1716409838252,-150.0,0.00012988,2]
[327738402,1716409838262,-204.71931777,0.00012989,2]
[327738403,1716409838272,-1245.65494893,0.00012989,2]
[327738404,1716409838282,-4278.94902585,0.00012989,2]
[327738405,1716409838292,-406.15859567,0.00012989,2]
[327738406,1716409838301,-516.40666,0.0001299,2]
[327738407,1716409838311,-7047.22660144,0.0001299,2]
[327738408,1716409838323,-472.17753284,0.0001299,2]
[327738409,1716409838332,-1298.39020343,0.0001299,2]
[327738410,1716409838342,-790.00185035,0.0001299,2]
[327738411,1716409838352,-1273.20131825,0.00012991,2]
[327738412,1716409838365,-832.01,0.00013015,2]
[327738413,1716409838374,-499.99,0.00013015,2]
[327738414,1716409838384,-1637.55523518,0.00013029,2]
[327738415,1716409838393,-2916.94245182,0.0001303,2]
[327738416,1716409838403,-2919.23173604,0.0001303,2]
[327738417,1716409838412,-1084.26,0.0001303,2]
[327738418,1716409838421,-1000.0,0.00013493,2]
[327738419,1716409838431,-200.0,0.00013597,2]
[327738420,1716409838440,-170.05,0.0001375,2]
[327738421,1716409838450,-276.78,0.00013754,2]
[327738422,1716409838460,-23890.0,0.00013771,2]
[327738423,1716409838470,-6198.5483,0.00013819,2]
[327738424,1716409838479,-250.0,0.00013823,2]
[327738426,1716409838489,-156.92,0.00013973,2]
[327738427,1716409838498,-168.33,0.00013973,2]
[327738428,1716409838508,-150.0,0.00014116,2]
[327738429,1716409838520,-3849.13,0.0001421,2]
[327738430,1716409838532,-210.0,0.00014287,2]
[327738431,1716409838541,-1500.0,0.0001432,2]
[327738432,1716409838552,-3752.11,0.00014351,2]
[327738433,1716409838563,-250.0,0.00014377,2]
[327738434,1716409838573,-156.88,0.00014639,2]
[327738435,1716409838583,-257.72182443,0.00015,2]
[327738436,1716409838592,-5900.0,0.00015,2]
[327738437,1716409838605,-619.02429447,0.00015019,2]
[327738439,1716409838618,-156.88,0.0001502,2]
[327738441,1716409838628,-1000.0,0.0001518,2]
[327738443,1716409838637,-300.0,0.00015381,2]
[327738445,1716409838647,-156.88,0.00015401,2]
[327738447,1716409838656,-170.05,0.00015469,2]
[327738449,1716409838665,-195.92344364,0.00015572,2]
[327738451,1716409838675,-155.84106242,0.00015572,2]
[327738453,1716409838685,-268.65341082,0.00015661,2]
[327738455,1716409838696,-688880.23162946,0.00015671,2]
[327738457,1716409838705,-166.42,0.00015672,2]
[327738459,1716409838714,-685.49,0.00015672,2]
[327738461,1716409838724,-200.0,0.00015672,2]
[327738463,1716409838733,-10000.0,0.00015672,2]
[327738465,1716409838742,-200.0,0.00015672,2]
[327738467,1716409838752,-500.0,0.00015672,2]
[327738469,1716409838761,-293.0,0.00015715,2]
[327738471,1716409838770,-276.78,0.00016018,2]
[327738473,1716409838781,-369.67747622,0.00016114,2]
[327738474,1716409838790,-5606.66,0.00016116,2]
[327738475,1716409838800,-321.50938792,0.00016238,2]
[327738476,1716409838809,-168.22761384,0.00016238,2]
[327738477,1716409838819,-25586.215,0.00016258,2]
[327738478,1716409838829,-318.04989705,0.00016335,2]
[327738479,1716409838839,-155.0,0.00016335,2]
[327738480,1716409838848,-172.68941544,0.00016338,2]
[327738481,1716409838858,-318700.559,0.00016338,2]
[327738482,1716409838869,-4441.6,0.00016438,2]
[327738483,1716409838879,-166.32,0.00016442,2]
[327738484,1716409838889,-150.0,0.0001647,2]
[327738485,1716409838898,-25505.50839206,0.00016492,2]
[327738486,1716409838908,-178.92,0.00016712,2]
[327738487,1716409838918,-300.0,0.00016751,2]
[327738488,1716409838927,-1000.0,0.00016867,2]
[327738489,1716409838937,-3849.13,0.00016949,2]
[327738490,1716409838947,-167.0,0.00016955,2]
[327738491,1716409838957,-250.0,0.00017018,2]
[327738492,1716409838966,-170.05,0.00017188,2]
[327738493,1716409838976,-411.0,0.00017287,2]
[327738494,1716409838985,-167.0,0.00017515,2]
[327738495,1716409838995,-168.22761382,0.00017515,2]
[327738496,1716409839005,-2161.0,0.00017523,2]
[327738497,1716409839015,-5131.0,0.00017523,2]
[327738498,1716409839025,-974.0,0.00017523,2]
[327738499,1716409839035,-1400.0,0.00017523,2]
[327738500,1716409839046,-481.846,0.00017523,2]
[327738501,1716409839055,-350.0,0.00017566,2]
[327738502,1716409839065,-323.62975825,0.00018,2]
[327738503,1716409839076,-158.48372415,0.00018,2]
[327738504,1716409839085,-167.0,0.00018075,2]
[327738505,1716409839096,-450.0,0.00018114,2]
[327738506,1716409839106,-276.78,0.00018282,2]
[327738507,1716409839122,-166.32,0.00018497,2]
[327738508,1716409839132,-5223.0,0.000185,2]
[327738509,1716409839143,-1000.0,0.00018553,2]
[327738510,1716409839153,-167.0,0.00018634,2]
[327738511,1716409839164,-550.0,0.00018662,2]
[327738512,1716409839174,-168.22761382,0.00018792,2]
[327738513,1716409839185,-1000.0,0.00018874,2]
[327738514,1716409839195,-170.05,0.00018906,2]
[327738515,1716409839206,-17781.9431,0.00018974,2]
[327738516,1716409839216,-271.9617,0.00018974,2]
[327738517,1716409839226,-5088.5566,0.00018974,2]
[327738518,1716409839236,-12013.0767,0.00018974,2]
[327738519,1716409839246,-294.97100721,0.00018978,2]
[327738520,1716409839256,-151.33410132,0.00019,2]
[327738521,1716409839266,-155.0,0.00019,2]
[327738522,1716409839276,-399.94974097,0.00019069,2]
[327738523,1716409839288,-218.42502293,0.00019069,2]
[327738524,1716409839298,-163.14617584,0.00019069,2]
[327738525,1716409839308,-298.09195788,0.00019069,2]
[327738526,1716409839318,-155.21401085,0.0001907,2]
[327738527,1716409839328,-3967.3465446,0.0001907,2]
[327738528,1716409839339,-155.0,0.00019072,2]
[327738529,1716409839349,-207.17530482,0.00019072,2]
[327738530,1716409839359,-263.02958027,0.00019072,2]
[327738531,1716409839372,-155.58088805,0.00019072,2]
[327738532,1716409839382,-155.33007435,0.00019072,2]
[327738533,1716409839392,-254.07261996,0.00019072,2]
[327738534,1716409839402,-194.97199603,0.00019072,2]
[327738535,1716409839413,-198.5631271,0.00019072,2]
[327738536,1716409839423,-156.09220759,0.00019072,2]
[327738537,1716409839434,-4742.3033678,0.00019073,2]
[327738538,1716409839444,-10076.17962705,0.00019073,2]
[327738539,1716409839454,-345.15606492,0.00019074,5]
[327738540,1716409839464,-226193.2065,0.00019075,2]
[327738541,1716409839475,-3739.19553947,0.00019078,2]
[327738542,1716409839484,-454.156,0.00019148,2]
[327738543,1716409839494,-210.35838687,0.00019178,2]
[327738544,1716409839505,-500.0,0.00019178,2]
[327738545,1716409839515,-500.0,0.00019178,2]
[327738546,1716409839524,-500.0,0.00019178,2]
[327738547,1716409839539,-500.0,0.00019178,2]
[327738548,1716409839549,-500.0,0.00019178,2]
[327738549,1716409839559,-500.0,0.00019178,2]
[327738550,1716409839570,-500.0,0.00019178,2]
[327738551,1716409839579,-500.0,0.00019178,2]
[327738552,1716409839590,-500.0,0.00019178,2]
[327738553,1716409839599,-324.46762923,0.00019178,2]
[327738554,1716409839613,-500.0,0.00019178,2]
[327738555,1716409839624,-500.0,0.00019178,2]
[327738556,1716409839635,-500.0,0.00019178,2]
[327738557,1716409839645,-500.0,0.00019178,2]
[327738558,1716409839654,-500.0,0.00019178,2]
[327738559,1716409839664,-500.0,0.00019178,2]
[327738560,1716409839675,-500.0,0.00019178,2]
[327738561,1716409839685,-500.0,0.00019178,2]
[327738562,1716409839695,-500.0,0.00019178,2]
[327738563,1716409839706,-500.0,0.00019178,2]
[327738564,1716409839715,-500.0,0.00019178,2]
[327738565,1716409839725,-500.0,0.00019178,2]
[327738566,1716409839735,-500.0,0.00019178,2]
[327738567,1716409839745,-500.0,0.00019178,2]
[327738568,1716409839755,-500.0,0.00019178,2]
[327738569,1716409839764,-500.0,0.00019178,2]
[327738570,1716409839775,-500.0,0.00019178,2]
[327738571,1716409839785,-500.0,0.00019178,2]
[327738572,1716409839796,-500.0,0.00019178,2]
[327738573,1716409839806,-500.0,0.00019178,2]
[327738574,1716409839817,-500.0,0.00019178,2]
[327738575,1716409839827,-500.0,0.00019178,2]
[327738576,1716409839838,-500.0,0.00019178,2]
[327738577,1716409839848,-500.0,0.00019178,2]
[327738578,1716409839858,-500.0,0.00019178,2]
[327738579,1716409839872,-500.0,0.00019178,2]
[327738580,1716409839882,-500.0,0.00019178,2]
[327738581,1716409839892,-500.0,0.00019178,2]
[327738582,1716409839902,-500.0,0.00019178,2]
[327738583,1716409839912,-500.0,0.00019178,2]
[327738584,1716409839922,-500.0,0.00019178,2]
[327738585,1716409839932,-500.0,0.00019178,2]
[327738586,1716409839942,-383.77584656,0.00019178,2]
[327738587,1716409839952,-490.83623602,0.00019178,2]
[327738588,1716409839962,-406.0447685,0.00019178,2]
[327738589,1716409839974,-3133.63,0.00019178,2]
[327738591,1716409839984,-167.0,0.00019194,2]
[327738592,1716409839995,-3881.14394197,0.000192,2]
[327738593,1716409840005,-650.0,0.0001921,2]
[327738594,1716409840015,-800.0,0.00019425,2]
[327738595,1716409840026,-554.68465209,0.00019449,2]
[327738596,1716409840036,-3154.06971672,0.0001945,2]
[327738597,1716409840046,-151.0,0.00019469,3]
[327738598,1716409840056,-151.0,0.00019469,2]
[327738599,1716409840066,-3739.19553943,0.00019607,2]
[327738600,1716409840076,-3849.13,0.00019689,2]
[327738601,1716409840087,-167.0,0.00019754,2]
[327738602,1716409840100,-750.0,0.00019758,2]
[327738603,1716409840112,-1771.93612771,0.0002,2]
[327738604,1716409840123,-1263.30642158,0.0002,2]
[327738605,1716409840133,-11046.34231626,0.0002,2]
[327738606,1716409840144,-862.31038971,0.0002,2]
[327738607,1716409840154,-627.95805638,0.0002,2]
[327738608,1716409840165,-155.0,0.0002,2]
[327738609,1716409840175,-155.0,0.0002,2]
[327738610,1716409840185,-6239.63008206,0.0002,2]
[327738611,1716409840195,-5186.20094472,0.0002,2]
[327738612,1716409840205,-158.08787055,0.0002,2]
[327738613,1716409840216,-215.71528153,0.0002,2]
[327738614,1716409840226,-155.0,0.0002,2]
[327738615,1716409840236,-168.22761382,0.00020069,2]
[327738616,1716409840246,-2752.8475968,0.0002009,2]
[327738617,1716409840257,-3739.19553943,0.00020137,2]
[327738618,1716409840267,-454.156,0.00020153,2]
[327738619,1716409840277,-294.97100717,0.00020209,2]
[327738620,1716409840287,-1000.0,0.0002024,2]
[327738621,1716409840298,-494.09574056,0.00020306,2]
[327738622,1716409840309,-151.0,0.00020464,2]
[327738623,1716409840484,-209.0,0.00020523,2]